fUSD/lending_fUSD_20240217
["ID","MTS","AMOUNT","RATE_DAILY","PERIOD"]
[314305756,1708169440942,-166.05101382,0.0004769,30]
[314305757,1708169440951,-153.52681665,0.00047744,36]
[314305758,1708169440960,-3120.96943832,0.00047751,5]
[314305759,1708169440970,-719.39,0.00047785,2]
[314305760,1708169440979,-153.0,0.00047923,30]
[314305761,1708169440988,-1000.0,0.00047939,4]
[314305762,1708169440998,-227.89924922,0.00047999,7]
[314305763,1708169441007,-188.9450234,0.00047999,7]
[314305764,1708169441016,-100000.0,0.00048,38]
[314305765,1708169441025,-15655.37453229,0.00048,30]
[314305766,1708169441034,-4000.0,0.00048,2]
[314305767,1708169441044,-167.8862141,0.00048069,30]
[314305769,1708169441053,-2311.5375,0.00048219,7]
[314305771,1708169441062,-223.021788,0.00048448,93]
[314305772,1708169441072,-153.0,0.00048471,30]
[314305773,1708169441081,-2000.0,0.000485,2]
[314305774,1708169441090,-292.21,0.000485,7]
[314305775,1708169441100,-1072.93,0.00048514,2]
[314305777,1708169441109,-154.6,0.000486,6]
[314305780,1708169441118,-154.6,0.000486,6]
[314305783,1708169441127,-230.51,0.000486,6]
[314305784,1708169441136,-230.51,0.000486,6]
[314305786,1708169441146,-230.51,0.000486,6]
[314305787,1708169441156,-230.51,0.000486,6]
[314305788,1708169441165,-230.51,0.000486,6]
[314305789,1708169441175,-230.51,0.000486,6]
[314305790,1708169441184,-230.51,0.000486,6]
[314305791,1708169441194,-230.51,0.000486,6]
[314305792,1708169441207,-230.51,0.000486,6]
[314305793,1708169441220,-230.51,0.000486,6]
[314305794,1708169441230,-230.51,0.000486,6]
[314305795,1708169441240,-230.51,0.000486,6]
[314305796,1708169441250,-230.51,0.000486,6]
[314305797,1708169441260,-230.51,0.000486,6]
[314305798,1708169441269,-230.51,0.000486,6]
[314305799,1708169441280,-230.51,0.000486,6]
[314305800,1708169441290,-230.51,0.000486,6]
[314305801,1708169441299,-230.51,0.000486,6]
[314305802,1708169441309,-230.51,0.000486,6]
[314305803,1708169441319,-230.51,0.000486,6]
[314305804,1708169441329,-223.021788,0.00048748,93]
[314305805,1708169441338,-2568.375,0.00048767,7]
[314305806,1708169441347,-15699.45471214,0.00048974,10]
[314305807,1708169441357,-100000.0,0.00049,39]
[314305808,1708169441365,-200.0,0.00049,30]
[314305809,1708169441375,-1150.0,0.00049,3]
[314305810,1708169441384,-153.0,0.00049019,30]
[314305811,1708169441393,-37274.52112762,0.00049047,10]
[314305812,1708169441403,-156.4,0.00049131,2]
[314305813,1708169441413,-223.021788,0.00049148,94]
[314305814,1708169441423,-2825.2125,0.00049315,7]
[314305815,1708169441433,-500.0,0.00049315,120]
[314305816,1708169441444,-3120.96943832,0.0004933,5]
[314305817,1708169441453,-155.17495203,0.00049366,25]
[314305818,1708169441464,-223.021788,0.00049448,94]
[314305819,1708169441473,-153.52681665,0.00049451,42]
[314305820,1708169441487,-486.72,0.00049564,120]
[314305821,1708169441497,-152.0,0.00049567,60]
[314305822,1708169441508,-500.0,0.00049589,120]
[314305823,1708169441519,-223.021788,0.00049748,94]
[314305824,1708169441528,-1000.0,0.000498,120]
[314305825,1708169441539,-17788.0,0.0004982,2]
[314305826,1708169441550,-1986.6,0.00049829,117]
[314305827,1708169441562,-3082.05,0.00049863,7]
[314305828,1708169441573,-500.0,0.00049863,120]
[314305829,1708169441582,-1000.0,0.00049949,4]
[314305830,1708169441594,-150.0,0.00049999,60]
[314305831,1708169441603,-100000.0,0.0005,40]
[314305832,1708169441613,-10000.0,0.0005,25]
[314305833,1708169441623,-20000.0,0.0005,40]
[314305834,1708169441632,-10000.0,0.0005,25]
[314305835,1708169441641,-865.76443847,0.0005,60]
[314305836,1708169441651,-753.21,0.0005,120]
[314305837,1708169441660,-1230.04,0.0005,120]
[314305838,1708169441669,-215092.0,0.0005,120]
[314305839,1708169441679,-205.56315575,0.0005,25]
[314305840,1708169441689,-6999.999999,0.0005,100]
[314305841,1708169441698,-23715.30459871,0.0005,120]
[314305842,1708169441707,-292.21,0.0005,7]
[314305843,1708169441717,-7301.69732635,0.0005,80]
[314305844,1708169441726,-10000.0,0.0005,120]
[314305845,1708169441736,-10000.0,0.0005,120]
[314305846,1708169441745,-4983.0,0.0005,15]
[314305847,1708169441754,-77352.0,0.0005,13]
[314305848,1708169441764,-2347.0,0.0005,30]
[314305849,1708169441774,-1000.0,0.0005,32]
[314305850,1708169441783,-1000.0,0.0005,39]
[314305851,1708169441792,-200.0,0.00050032,120]
[314305852,1708169441801,-451.615,0.00050083,120]
[314305853,1708169441811,-1022.794,0.00050083,120]
[314305854,1708169441820,-982.869,0.00050083,120]
[314305855,1708169441829,-276.0,0.00050083,120]
[314305856,1708169441838,-151.039,0.00050083,120]
[314305857,1708169441848,-1138.0,0.00050083,120]
[314305858,1708169441858,-324.602,0.00050083,120]
[314305859,1708169441867,-421.667,0.00050083,120]
[314305860,1708169441877,-2871.0,0.00050083,120]
[314305861,1708169441888,-399.937,0.00050083,120]
[314305862,1708169441898,-454.0,0.00050083,120]
[314305863,1708169441908,-2690.0,0.00050083,120]
[314305864,1708169441918,-2928.0,0.00050083,120]
[314305865,1708169441928,-1865.0,0.00050083,120]
[314305866,1708169441937,-1369.0,0.00050083,120]
[314305867,1708169441947,-38388.357,0.00050083,120]
[314305868,1708169441957,-8199.896,0.00050083,120]
[314305869,1708169441966,-4099.0,0.00050083,120]
[314305870,1708169441976,-7419.0,0.00050083,120]
[314305871,1708169441986,-2290.0,0.00050083,120]
[314305872,1708169441996,-2916.044,0.00050083,120]
[314305873,1708169442006,-19853.0,0.00050083,120]
[314305874,1708169442014,-543.505,0.00050083,120]
[314305875,1708169442023,-710.472,0.00050083,120]
[314305876,1708169442032,-850.0,0.00050083,2]
[314305877,1708169442042,-956.618,0.00050083,120]
[314305878,1708169442051,-150.0,0.00050083,2]
[314305879,1708169442061,-152.0,0.00050115,60]
[314305880,1708169442070,-223.021788,0.00050118,94]
[314305881,1708169442080,-165.69732456,0.00050123,20]
[314305882,1708169442089,-500.0,0.00050136,120]
[314305883,1708169442098,-166.05101382,0.00050168,60]
[314305884,1708169442108,-227.89924922,0.00050199,10]
[314305885,1708169442117,-188.9450234,0.00050199,10]
[314305886,1708169442127,-7606.10941803,0.000502,120]
[314305887,1708169442136,-7606.10941794,0.000502,120]
[314305888,1708169442146,-7606.10941794,0.000502,120]
[314305889,1708169442156,-7606.10941794,0.000502,120]
[314305890,1708169442166,-7606.10941794,0.000502,120]
[314305891,1708169442176,-7606.10941794,0.000502,120]
[314305892,1708169442185,-7606.10941794,0.000502,120]
[314305893,1708169442196,-7606.10941794,0.000502,120]
[314305894,1708169442208,-7606.10941794,0.000502,120]
[314305895,1708169442217,-7606.10941794,0.000502,120]
[314305896,1708169442227,-7606.10941794,0.000502,120]
[314305897,1708169442236,-7606.10941794,0.000502,120]
[314305898,1708169442245,-7606.10941794,0.000502,120]
[314305899,1708169442255,-7606.10941794,0.000502,120]
[314305900,1708169442264,-7606.10941794,0.000502,120]
[314305901,1708169442274,-7606.10941794,0.000502,120]
[314305902,1708169442283,-7606.10941794,0.000502,120]
[314305903,1708169442293,-7606.10941794,0.000502,120]
[314305904,1708169442302,-7606.10941794,0.000502,120]
[314305905,1708169442312,-7606.10941794,0.000502,120]
[314305906,1708169442322,-166.05101382,0.00050276,60]
[314305907,1708169442331,-158.83,0.00050308,120]
[314305908,1708169442341,-158.831,0.00050308,120]
[314305909,1708169442351,-2905.006,0.00050308,120]
[314305910,1708169442360,-158.83,0.00050308,120]
[314305911,1708169442369,-2905.006,0.00050308,120]
[314305912,1708169442380,-158.831,0.00050308,120]
[314305913,1708169442389,-2905.006,0.00050308,120]
[314305914,1708169442398,-2905.006,0.00050308,120]
[314305915,1708169442408,-2905.006,0.00050308,120]
[314305916,1708169442417,-158.23203844,0.00050375,60]
[314305917,1708169442427,-3338.8875,0.0005041,7]
[314305918,1708169442437,-545.07531678,0.0005041,120]
[314305919,1708169442448,-223.021788,0.00050418,95]
[314305920,1708169442458,-58000.0,0.00050467,7]
[314305921,1708169442467,-236.71165668,0.00050581,7]
[314305922,1708169442477,-152.0,0.00050663,60]
[314305923,1708169442486,-156.4,0.00050679,2]
[314305924,1708169442497,-19192.367375,0.00050684,30]
[314305925,1708169442507,-2496.132629,0.00050684,120]
[314305926,1708169442517,-14271.247536,0.00050684,30]
[314305927,1708169442527,-4921.119839,0.00050684,30]
[314305928,1708169442537,-223.021788,0.00050718,95]
[314305929,1708169442547,-500.0,0.0005077,30]
[314305930,1708169442556,-1072.93,0.00050778,2]
[314305931,1708169442566,-1000.0,0.00050783,120]
[314305932,1708169442578,-166.05101387,0.000509,60]
[314305933,1708169442588,-3120.96943832,0.00050909,14]
[314305934,1708169442598,-158.23203844,0.00050919,60]
[314305935,1708169442608,-1284.34615152,0.00050958,7]
[314305936,1708169442617,-200.0,0.00050987,79]
[314305937,1708169442627,-200.0,0.00050987,78]
[314305938,1708169442636,-156.66,0.0005099,120]
[314305939,1708169442645,-100000.0,0.00051,41]
[314305940,1708169442656,-17515.0,0.00051,120]
[314305941,1708169442665,-987.2158259,0.00051,10]
[314305942,1708169442674,-23000.0,0.00051,45]
[314305943,1708169442684,-186591.74229204,0.00051,30]
[314305944,1708169442694,-262.62270052,0.0005102,2]
[314305945,1708169442704,-500.0,0.00051044,30]
[314305946,1708169442713,-223.021788,0.00051118,95]
[314305947,1708169442723,-191.04,0.00051137,2]
[314305949,1708169442733,-151.98,0.00051142,2]
[314305950,1708169442741,-153.52681665,0.00051159,49]
[314305951,1708169442847,-2000.0,0.000512,2]
[314305952,1708169442869,-152.0,0.00051211,60]
[314305953,1708169442879,-10010.22237597,0.00051224,120]
[314305954,1708169442888,-15699.45471214,0.00051246,12]
[314305955,1708169442897,-3000.0,0.00051247,55]
[314305956,1708169442909,-292.21,0.000513,7]
[314305957,1708169442919,-500.0,0.00051317,30]
[314305958,1708169442928,-37274.52112762,0.00051332,12]
[314305959,1708169442938,-223.021788,0.00051448,95]
[314305960,1708169442947,-25997.55481538,0.0005148,2]
[314305961,1708169442961,-5000.0,0.000515,60]
[314305962,1708169442970,-3000.0,0.000515,45]
[314305963,1708169442980,-5000.0,0.000515,60]
[314305964,1708169442989,-3000.0,0.000515,45]
[314305965,1708169442999,-19192.367375,0.00051506,30]
[314305966,1708169443009,-2496.132629,0.00051506,120]
[314305967,1708169443018,-14271.247536,0.00051506,30]
[314305968,1708169443027,-4921.119839,0.00051506,30]
[314305969,1708169443036,-174.472826,0.00051509,30]
[314305970,1708169443045,-158.166395,0.00051509,30]
[314305971,1708169443054,-196.409249,0.00051509,30]
[314305972,1708169443063,-500.0,0.0005159,30]
[314305973,1708169443072,-3000.0,0.0005173,57]
[314305974,1708169443081,-223.021788,0.00051748,95]
[314305975,1708169443090,-152.0,0.00051759,60]
[314305976,1708169443099,-200.0,0.00051777,78]
[314305977,1708169443108,-500.0,0.00051863,30]
[314305978,1708169443117,-39498.4927,0.000519,2]
[314305979,1708169443127,-100000.0,0.000519,2]
[314305980,1708169443136,-500.0,0.000519,2]
[314305981,1708169443148,-155.17495203,0.000519,29]
[314305982,1708169443157,-154.6,0.000519,7]
[314305983,1708169443167,-154.6,0.000519,7]
[314305984,1708169443177,-169.61833616,0.000519,14]
[314305985,1708169443187,-230.51,0.000519,7]
[314305986,1708169443197,-230.51,0.000519,7]
[314305987,1708169443208,-230.51,0.000519,7]
[314305988,1708169443217,-230.51,0.000519,7]
[314305989,1708169443226,-230.51,0.000519,7]
[314305990,1708169443235,-230.51,0.000519,7]
[314305991,1708169443245,-230.51,0.000519,7]
[314305992,1708169443255,-230.51,0.000519,7]
[314305993,1708169443265,-230.51,0.000519,7]
[314305994,1708169443274,-230.51,0.000519,7]
[314305995,1708169443285,-230.51,0.000519,7]
[314305996,1708169443294,-230.51,0.000519,7]
[314305997,1708169443303,-230.51,0.000519,7]
[314305998,1708169443312,-230.51,0.000519,7]
[314305999,1708169443321,-230.51,0.000519,7]
[314306000,1708169443330,-230.51,0.000519,7]
[314306001,1708169443339,-230.51,0.000519,7]
[314306002,1708169443348,-230.51,0.000519,7]
[314306003,1708169443357,-230.51,0.000519,7]
[314306004,1708169443367,-230.51,0.000519,7]
[314306005,1708169443376,-360.99221728,0.000519,2]
[314306006,1708169443384,-200.95724061,0.000519,2]
[314306007,1708169443394,-1000.0,0.00051959,4]
[314306008,1708169443403,-200.0,0.00051987,82]
[314306009,1708169443412,-200.0,0.00051987,81]
[314306010,1708169443421,-200.0,0.00051987,80]
[314306011,1708169443431,-200.0,0.0005199,90]
[314306012,1708169443440,-209.18429795,0.0005199,90]
[314306013,1708169443449,-200.0,0.0005199,90]
[314306014,1708169443458,-48028.82701657,0.00051998,120]
[314306015,1708169443467,-1000.0,0.00051999,2]
[314306016,1708169443477,-227.89924922,0.00051999,11]
[314306017,1708169443486,-188.9450234,0.00051999,11]
[314306018,1708169443495,-227.89924922,0.00051999,11]
[314306019,1708169443504,-188.9450234,0.00051999,11]
[314306020,1708169443513,-100000.0,0.00052,42]
[314306021,1708169443523,-1856778.14270356,0.00052,30]
[314306022,1708169443532,-8312.00222774,0.00052,120]
[314306023,1708169443541,-5000.0,0.00052,40]
[314306024,1708169443550,-216.0,0.00052,120]
[314306025,1708169443560,-200.0,0.00052,15]
[314306026,1708169443569,-160.0,0.00052,120]
[314306027,1708169443578,-2000.0,0.00052,15]
[314306028,1708169443587,-200.0,0.00052,15]
[314306029,1708169443596,-372.0,0.00052,60]
[314306030,1708169443605,-2000.0,0.00052,15]
[314306031,1708169443615,-200.0,0.00052,15]
[314306032,1708169443624,-14569.34228126,0.00052,2]
[314306033,1708169443633,-2000.0,0.00052,15]
[314306034,1708169443642,-200.0,0.00052,15]
[314306035,1708169443651,-170.78,0.00052025,120]
[314306036,1708169443660,-150.5,0.00052035,120]
[314306037,1708169443669,-150.5,0.00052045,120]
[314306038,1708169443678,-169.08,0.00052045,120]
[314306039,1708169443687,-3568.121373,0.00052054,30]
[314306040,1708169443696,-1230.27996,0.00052054,30]
[314306041,1708169443706,-3373.152203,0.00052054,120]
[314306042,1708169443715,-674.63044,0.00052054,120]
[314306043,1708169443724,-4921.119839,0.00052054,30]
[314306044,1708169443733,-4921.119839,0.00052054,30]
[314306045,1708169443742,-674.63044,0.00052054,120]
[314306046,1708169443751,-590.301635,0.00052054,120]
[314306047,1708169443760,-7381.679759,0.00052054,30]
[314306048,1708169443769,-1180.60327,0.00052054,120]
[314306049,1708169443778,-5536.259819,0.00052054,30]
[314306050,1708169443788,-4798.091843,0.00052054,30]
[314306051,1708169443797,-624.033157,0.00052054,120]
[314306052,1708169443806,-4722.413086,0.00052054,120]
[314306053,1708169443815,-3567.811884,0.00052054,30]
[314306054,1708169443824,-5059.728302,0.00052054,120]
[314306055,1708169443833,-2698.52176,0.00052054,120]
[314306056,1708169443842,-1230.279959,0.00052054,30]
[314306057,1708169443851,-500.0,0.00052055,120]
[314306058,1708169443860,-20000.0,0.00052055,120]
[314306059,1708169443870,-17515.0,0.000521,120]
[314306060,1708169443879,-3000.00630398,0.00052135,30]
[314306061,1708169443887,-500.0,0.00052137,30]
[314306062,1708169443897,-223.021788,0.00052148,96]
[314306063,1708169443906,-500.0,0.0005216,120]
[314306064,1708169443916,-156.4,0.00052226,2]
[314306065,1708169443925,-500.0,0.00052266,120]
[314306066,1708169443933,-370.0,0.00052287,30]
[314306067,1708169443942,-152.0,0.00052307,120]
[314306068,1708169443951,-4251828.47537859,0.00052328,39]
[314306069,1708169443961,-500.0,0.00052371,120]
[314306070,1708169443970,-10000.0,0.0005238,10]
[314306071,1708169443979,-239.53791675,0.00052406,2]
[314306072,1708169443988,-209.07238697,0.00052406,2]
[314306073,1708169443997,-454.58454657,0.00052406,2]
[314306074,1708169444006,-197.60091381,0.00052406,2]
[314306075,1708169444014,-228.01801375,0.00052406,3]
[314306076,1708169444023,-945.53615405,0.00052406,3]
[314306077,1708169444032,-190.32084408,0.00052406,3]
[314306078,1708169444041,-158.64059058,0.00052406,2]
[314306079,1708169444050,-6904.53034218,0.00052406,7]
[314306080,1708169444060,-3323.60094645,0.00052406,4]
[314306081,1708169444070,-171.50325387,0.00052406,2]
[314306082,1708169444079,-782.41,0.0005241,30]
[314306083,1708169444089,-223.021788,0.00052448,96]
[314306084,1708169444098,-1234.75,0.0005245,2]
[314306085,1708169444108,-2092.71217767,0.0005247,120]
[314306086,1708169444117,-151.0,0.00052471,2]
[314306087,1708169444126,-500.0,0.00052476,120]
[314306088,1708169444136,-3120.96943832,0.00052487,14]
[314306089,1708169444145,-5000.0,0.000525,45]
[314306090,1708169444154,-5000.0,0.000525,45]
[314306091,1708169444163,-2347.0,0.000525,30]
[314306092,1708169444173,-200.0,0.0005252,15]
[314306093,1708169444182,-2000.0,0.0005252,15]
[314306094,1708169444191,-200.0,0.0005252,15]
[314306095,1708169444203,-2000.0,0.0005252,15]
[314306096,1708169444212,-200.0,0.0005252,15]
[314306097,1708169444221,-2000.0,0.0005252,15]
[314306098,1708169444231,-200.0,0.0005252,15]
[314306099,1708169444241,-500.0,0.00052582,120]
[314306100,1708169444250,-160.0,0.00052603,120]
[314306101,1708169444259,-500.0,0.00052687,120]
[314306102,1708169444268,-227.89924922,0.00052711,12]
[314306103,1708169444280,-188.9450234,0.00052711,12]
[314306104,1708169444289,-50000.0,0.00052712,45]
[314306105,1708169444299,-223.021788,0.00052748,100]
[314306106,1708169444308,-500.0,0.00052792,120]
[314306107,1708169444318,-196.409248,0.00052797,30]
[314306108,1708169444327,-160.0,0.00052822,120]
[314306109,1708169444337,-370.0,0.00052826,30]
[314306110,1708169444346,-152.0,0.00052855,120]
[314306111,1708169444355,-153.52681665,0.00052866,55]
[314306112,1708169444364,-500.0,0.00052898,120]
[314306113,1708169444373,-33100.5973,0.000529,120]
[314306114,1708169444382,-150.0,0.000529,120]
[314306115,1708169444391,-4334.4,0.00052957,117]
[314306116,1708169444400,-3000.0,0.0005298,63]
[314306117,1708169444409,-200.0,0.00052987,85]
[314306118,1708169444418,-200.0,0.00052987,84]
[314306119,1708169444427,-200.0,0.00052987,83]
[314306120,1708169444436,-100000.0,0.00053,43]
[314306121,1708169444445,-11436.33495472,0.00053,60]
[314306122,1708169444454,-10000.0,0.00053,25]
[314306123,1708169444464,-10000.0,0.00053,60]
[314306124,1708169444472,-5000.0,0.00053,62]
[314306125,1708169444482,-3000.0,0.00053,47]
[314306126,1708169444491,-5000.0,0.00053,62]
[314306127,1708169444501,-3000.0,0.00053,47]
[314306128,1708169444510,-1306.52860987,0.00053,30]
[314306129,1708169444520,-205.0,0.00053,20]
[314306130,1708169444530,-151.4,0.00053,120]
[314306131,1708169444539,-151.4,0.00053,120]
[314306132,1708169444548,-151.4,0.00053,120]
[314306133,1708169444558,-151.4,0.00053,120]
[314306134,1708169444567,-151.4,0.00053,120]
[314306135,1708169444576,-151.4,0.00053,120]
[314306136,1708169444585,-151.4,0.00053,120]
[314306137,1708169444595,-151.4,0.00053,120]
[314306138,1708169444604,-151.4,0.00053,120]
[314306139,1708169444613,-151.4,0.00053,120]
[314306140,1708169444622,-151.4,0.00053,120]
[314306141,1708169444631,-500.0,0.00053003,120]
[314306142,1708169444639,-1072.93,0.00053042,2]
[314306143,1708169444648,-2000.0,0.00053045,15]
[314306144,1708169444658,-200.0,0.00053045,15]
[314306145,1708169444667,-2000.0,0.00053045,15]
[314306146,1708169444676,-200.0,0.00053045,15]
[314306147,1708169444686,-2000.0,0.00053045,15]
[314306148,1708169444695,-200.0,0.00053045,15]
[314306149,1708169444704,-429.0,0.00053083,120]
[314306150,1708169444713,-1005.0,0.00053083,120]
[314306151,1708169444722,-858.0,0.00053083,120]
[314306152,1708169444732,-276.0,0.00053083,120]
[314306153,1708169444741,-150.0,0.00053083,120]
[314306154,1708169444751,-1138.0,0.00053083,120]
[314306155,1708169444760,-321.0,0.00053083,120]
[314306156,1708169444769,-343.0,0.00053083,120]
[314306157,1708169444778,-2871.0,0.00053083,120]
[314306158,1708169444787,-389.0,0.00053083,120]
[314306159,1708169444796,-454.0,0.00053083,120]
[314306160,1708169444805,-2690.0,0.00053083,120]
[314306161,1708169444815,-2928.0,0.00053083,120]
[314306162,1708169444824,-1865.0,0.00053083,120]
[314306163,1708169444833,-1290.966,0.00053083,120]
[314306164,1708169444842,-8166.0,0.00053083,120]
[314306165,1708169444851,-4099.0,0.00053083,120]
[314306166,1708169444860,-7419.0,0.00053083,120]
[314306167,1708169444869,-2290.0,0.00053083,120]
[314306168,1708169444878,-19853.0,0.00053083,120]
[314306169,1708169444887,-708.0,0.00053083,120]
[314306170,1708169444896,-842.0,0.00053083,2]
[314306171,1708169444906,-953.0,0.00053083,120]
[314306172,1708169444915,-500.0,0.00053109,120]
[314306173,1708169444924,-223.021788,0.00053148,100]
[314306174,1708169444933,-160.0,0.00053205,120]
[314306175,1708169444943,-500.0,0.00053214,120]
[314306176,1708169444952,-486.72,0.000533,120]
[314306177,1708169444961,-500.0,0.00053319,120]
[314306178,1708169444970,-302.0,0.00053353,4]
[314306179,1708169445066,-370.0,0.00053365,30]
[314306180,1708169445088,-922.3,0.000534,30]
[314306181,1708169445098,-1013.0,0.000534,7]
[314306182,1708169445107,-898.0,0.000534,30]
[314306183,1708169445117,-1000.0,0.000534,30]
[314306184,1708169445126,-152.0,0.00053403,120]
[314306185,1708169445135,-16000.0,0.00053415,20]
[314306186,1708169445144,-16000.0,0.00053424,20]
[314306187,1708169445153,-500.0,0.00053425,120]
[314306188,1708169445162,-318.82,0.00053425,30]
[314306189,1708169445172,-150.0,0.00053425,30]
[314306190,1708169445181,-150.0,0.00053425,30]
[314306191,1708169445190,-412.14,0.00053425,30]
[314306192,1708169445201,-601.72,0.00053425,30]
[314306193,1708169445210,-427.37,0.00053425,30]
[314306194,1708169445219,-348.82,0.00053425,30]
[314306195,1708169445228,-150.0,0.00053447,7]
[314306196,1708169445238,-223.021788,0.00053448,100]
[314306197,1708169445247,-200.0,0.000535,30]
[314306198,1708169445256,-200.0,0.000535,30]
[314306199,1708169445266,-74463.17381662,0.000535,60]
[314306201,1708169445275,-15699.45471214,0.00053518,14]
[314306203,1708169445287,-500.0,0.0005353,120]
[314306204,1708169445297,-205.0,0.00053538,20]
[314306205,1708169445306,-2000.0,0.00053576,15]
[314306206,1708169445316,-200.0,0.00053576,15]
[314306207,1708169445326,-2000.0,0.00053576,15]
[314306208,1708169445335,-200.0,0.00053576,15]
[314306209,1708169445345,-2000.0,0.00053576,15]
[314306210,1708169445354,-200.0,0.00053576,15]
[314306211,1708169445363,-37274.52112762,0.00053616,14]
[314306212,1708169445373,-500.0,0.00053635,120]
[314306213,1708169445382,-160.0,0.00053644,120]
[314306214,1708169445391,-915.91,0.00053699,30]
[314306215,1708169445400,-915.91,0.00053699,30]
[314306216,1708169445410,-815.88,0.00053699,30]
[314306217,1708169445420,-405.51,0.00053699,30]
[314306218,1708169445429,-405.51,0.00053699,30]
[314306219,1708169445439,-915.91,0.00053699,30]
[314306220,1708169445448,-405.51,0.00053699,30]
[314306221,1708169445458,-405.51,0.00053699,30]
[314306222,1708169445467,-915.91,0.00053699,30]
[314306223,1708169445476,-405.51,0.00053699,30]
[314306224,1708169445485,-811.02,0.00053699,30]
[314306225,1708169445495,-405.51,0.00053699,30]
[314306226,1708169445504,-404.99,0.00053699,30]
[314306227,1708169445513,-299.99999901,0.000537,30]
[314306228,1708169445522,-150.0,0.00053702,7]
[314306229,1708169445532,-200.0,0.00053715,30]
[314306230,1708169445541,-150.0,0.00053725,7]
[314306231,1708169445550,-500.0,0.00053741,120]
[314306232,1708169445560,-223.021788,0.00053748,100]
[314306233,1708169445569,-5003.32,0.000538,2]
[314306234,1708169445578,-160.0,0.00053808,120]
[314306235,1708169445587,-3259.20053937,0.00053838,30]
[314306236,1708169445596,-500.0,0.00053846,120]
[314306237,1708169445606,-150.0,0.00053889,2]
[314306238,1708169445616,-36688.17354935,0.000539,120]
[314306239,1708169445625,-150.0,0.000539,120]
[314306240,1708169445634,-370.0,0.00053904,30]
[314306241,1708169445642,-200.0,0.0005393,30]
[314306242,1708169445652,-150.0,0.00053949,7]
[314306243,1708169445661,-152.0,0.00053951,120]
[314306244,1708169445671,-500.0,0.00053952,120]
[314306245,1708169445679,-1000.0,0.0005397,4]
[314306246,1708169445689,-150.0,0.00053981,7]
[314306247,1708169445698,-200.0,0.00053987,87]
[314306248,1708169445707,-200.0,0.00053987,86]
[314306249,1708169445716,-227.89924922,0.00053999,13]
[314306250,1708169445725,-188.9450234,0.00053999,13]
[314306251,1708169445734,-100000.0,0.00054,44]
[314306252,1708169445743,-235880.52673272,0.00054,120]
[314306253,1708169445753,-501.0679168,0.00054,30]
[314306254,1708169445762,-1212.91218193,0.00054,4]
[314306255,1708169445771,-33656.94976191,0.00054,45]
[314306256,1708169445780,-94909.25653396,0.00054,120]
[314306257,1708169445789,-182.00450485,0.00054,120]
[314306258,1708169445798,-13612.77,0.00054,120]
[314306259,1708169445807,-10000.0,0.00054,60]
[314306260,1708169445816,-2000.0,0.00054,2]
[314306261,1708169445825,-161.39491726,0.00054,2]
[314306262,1708169445834,-5369.59089567,0.00054,120]
[314306263,1708169445843,-500.0,0.00054057,120]
[314306264,1708169445852,-3120.96943832,0.00054066,30]
[314306265,1708169445861,-205.0,0.00054077,20]
[314306266,1708169445871,-196.409248,0.00054085,30]